bitfinex/quotes_SOLUSD_20250406
["timestamp","ask_amount","ask_price","bid_price","bid_amount"]
[1743983271565,69.21385727,106.25,106.2,69.21385727]
[1743983271772,150.47685727,106.26,106.21,69.21385727]
[1743983272463,81.263,106.26,106.22,69.21385727]
[1743983272679,150.47685727,106.26,106.21,69.21385727]
[1743983273876,69.21385727,106.24,106.19,69.21385727]
[1743983274373,81.2,106.25,106.21,69.21385727]
[1743983274560,69.21385727,106.24,106.19,69.21385727]
[1743983274879,78.62655727,106.24,106.19,69.21385727]
[1743983275062,69.21385727,106.23,106.15,69.21385727]
[1743983275375,69.21385727,106.23,106.18,69.21385727]
[1743983275582,0.063,106.26,106.22,69.21385727]
[1743983275780,0.063,106.26,106.2,69.21385727]
[1743983275982,0.063,106.26,106.19,25.8015]
[1743983275983,69.27685727,106.26,106.19,25.8015]
[1743983276192,69.21385727,106.23,106.18,69.21385727]
[1743983276485,69.21385727,106.2,106.15,69.21385727]
[1743983276777,0.42648471,106.21,106.15,69.21385727]
[1743983277090,69.49818041,106.21,106.16,69.21385727]
[1743983277457,69.35601884,106.22,106.17,69.21385727]
[1743983277663,78.77041884,106.22,106.12,13.1397]
[1743983277985,69.21385727,106.2,106.15,69.21385727]
[1743983278156,69.21385727,106.18,106.13,69.21385727]
[1743983278767,69.64034198,106.2,106.12,69.21385727]
[1743983278768,69.21385727,106.17,106.12,69.21385727]
[1743983279001,81.2,106.21,106.16,69.21385727]
[1743983279289,69.21385727,106.2,106.16,69.21385727]
[1743983280163,69.21385727,106.2,106.15,69.21385727]
[1743983280883,155.08735727,106.24,106.19,69.21385727]
[1743983281073,69.21385727,106.23,106.18,69.21385727]
[1743983281274,69.21385727,106.2,106.14,12.48]
[1743983281580,69.21385727,106.17,106.12,69.21385727]
[1743983281766,169.48999084,106.19,106.14,69.21385727]
[1743983281966,169.48999084,106.19,106.11,0.03]
[1743983281967,69.64034198,106.15,106.11,0.03]
[1743983282282,69.21385727,106.12,106.11,0.03]
[1743983282467,69.64034198,106.12,106.11,0.03]
[1743983282664,88.28999084,106.12,106.11,0.03]
[1743983282870,97.71319084,106.12,106.11,0.03]
[1743983284255,169.48999084,106.12,106.11,0.03]
[1743983285385,178.91319084,106.12,106.11,0.03]
[1743983289886,39.57548471,106.1,106.09,0.03]
[1743983290076,235.11987259,106.1,106.09,0.0001]
[1743983290662,0.42648471,106.08,106.05,0.03]
[1743983290887,88.28999084,106.06,106.05,0.03]
[1743983291091,97.71859084,106.06,106.05,0.03]
[1743983291301,28.50473357,106.06,106.05,0.03]
[1743983291476,97.71859084,106.06,106.05,0.03]
[1743983291674,168.65127259,106.06,106.05,0.03]
[1743983292764,99.43741532,106.06,106.05,0.03]
[1743983292964,90.00881532,106.06,106.05,0.03]
[1743983293277,19.07613357,106.05,106.04,0.03]
[1743983293488,157.50384811,106.05,106.04,0.03]
[1743983294598,159.22267259,106.05,106.03,0.0001]
[1743983294805,69.49818041,106.04,106.03,0.0001]
[1743983295373,56.04186139,106.04,106.03,0.0001]
[1743983295589,74.83367182,106.04,106.03,0.0001]
[1743983296499,27.71882448,106.05,106.03,0.0001]
[1743983296710,57.47576273,106.05,106.03,0.0001]
[1743983297014,0.28432314,106.04,106.03,0.0001]
[1743983297380,1.71882448,106.05,106.03,0.0001]
[1743983297709,28.07784886,106.07,106.03,0.0001]
[1743983297871,0.28432314,106.06,106.03,46.32723825]
[1743983298403,46.61146139,106.06,106.03,0.0001]
[1743983298806,46.32713825,106.05,106.03,0.0001]
[1743983298977,65.40327182,106.04,106.03,0.0001]
[1743983299407,74.83367182,106.04,106.03,0.0001]
[1743983300282,76.5524963,106.04,106.03,0.0001]
[1743983301327,99.73978645,106.04,106.03,0.0001]
[1743983301702,1.71882448,106.04,106.03,0.0001]
[1743983302021,9.56986157,106.07,106.03,0.0001]
[1743983302198,0.28432314,106.06,106.03,69.5145284]
[1743983302394,0.28432314,106.06,106.03,0.0001]
[1743983302625,23.5612,106.11,106.04,69.5144284]
[1743983302785,69.5144284,106.09,106.04,69.5144284]
[1743983302987,69.5144284,106.08,106.04,69.5144284]
[1743983303288,0.28432314,106.07,106.04,69.5144284]
[1743983303495,111.86883883,106.1,106.03,0.0001]
[1743983303702,0.14216157,106.07,106.03,0.0001]
[1743983303905,0.14216157,106.07,106.03,69.5145284]
[1743983304205,81.2,106.09,106.05,69.5144284]
[1743983304405,88.59056197,106.08,106.03,0.0001]
[1743983304589,69.5144284,106.07,106.03,0.0001]
[1743983304990,88.59056197,106.06,106.03,0.0001]
[1743983305389,79.22745154,106.06,106.03,0.0001]
[1743983305793,0.28432314,106.06,106.03,0.0001]
[1743983306125,0.28432314,106.08,106.04,69.5144284]
[1743983306288,18.933972,106.08,106.04,69.5144284]
[1743983306491,0.14216157,106.09,106.05,69.5144284]
[1743983306690,69.65658997,106.08,106.03,0.0001]
[1743983306902,0.14216157,106.07,106.03,69.5145284]
[1743983307102,0.14216157,106.11,106.06,69.5144284]
[1743983307303,69.65658997,106.11,106.06,69.5144284]
[1743983307512,0.28432314,106.1,106.06,69.5144284]
[1743983307737,79.08078997,106.11,106.06,69.5144284]
[1743983308033,69.79875154,106.09,106.05,69.5144284]
[1743983308240,69.79875154,106.09,106.03,0.0001]
[1743983308416,0.28432314,106.09,106.05,69.5144284]
[1743983308612,0.14216157,106.11,106.06,69.5144284]
[1743983308945,88.16407726,106.12,106.08,69.5144284]
[1743983309295,18.64964886,106.12,106.08,69.5144284]
[1743983309536,88.16407726,106.12,106.07,69.5144284]
[1743983309698,97.58747726,106.12,106.07,69.5144284]
[1743983310039,69.65658997,106.11,106.06,69.5144284]
[1743983310208,69.79875154,106.11,106.06,69.5144284]
[1743983310403,0.063,106.12,106.05,69.5144284]
[1743983310630,69.5144284,106.11,106.06,69.5144284]
[1743983310832,69.5144284,106.11,106.03,0.0001]
[1743983311036,69.5144284,106.09,106.04,69.5144284]
[1743983311338,0.28432314,106.1,106.03,0.0001]
[1743983311339,0.28432314,106.06,106.03,0.0001]
[1743983311546,78.9430284,106.06,106.03,0.0001]
[1743983312132,9.71212314,106.07,106.03,0.0001]
[1743983312333,69.5144284,106.06,106.03,0.0001]
[1743983312705,0.28432314,106.04,106.03,0.0001]
[1743983312910,88.59056197,106.04,106.03,0.0001]
[1743983313327,102.76938645,106.04,106.03,0.0001]
[1743983313500,112.19978645,106.04,106.03,0.0001]
[1743983313936,2.00314762,106.04,106.03,0.0001]
[1743983314240,9.71472314,106.04,106.03,0.0001]
[1743983314446,79.22915154,106.04,106.03,0.0001]
[1743983314633,0.28432314,106.04,106.03,0.0001]
[1743983314832,90.30938645,106.04,106.03,0.0001]
[1743983315033,99.73978645,106.04,106.03,0.0001]
[1743983316452,30.22535805,106.04,106.03,0.0001]
[1743983316655,99.59762488,106.04,106.03,0.0001]
[1743983316956,99.73978645,106.04,106.03,0.0001]
[1743983319649,20.79495805,106.04,106.03,0.0001]
[1743983319856,90.30938645,106.04,106.03,0.0001]
[1743983320161,99.73978645,106.04,106.03,0.0001]
[1743983321147,37.63313424,106.04,106.03,0.0001]
[1743983321330,99.73978645,106.04,106.03,0.0001]
[1743983322047,112.17978645,106.04,106.03,0.0001]
[1743983322362,0.14216157,106.07,106.03,0.0001]
[1743983322659,69.5144284,106.06,106.03,0.0001]
[1743983323164,0.28432314,106.05,106.03,0.0001]
[1743983323867,69.5144284,106.07,106.03,0.0001]
[1743983324028,18.79181043,106.09,106.04,69.5144284]
[1743983324232,18.79181043,106.09,106.05,69.5144284]
[1743983324454,0.28432314,106.08,106.04,69.5144284]
[1743983324670,0.28432314,106.08,106.06,69.5144284]
[1743983324846,18.79181043,106.09,106.05,69.5144284]
[1743983325253,0.28432314,106.08,106.03,0.0001]
[1743983325435,97.73243883,106.09,106.04,69.5144284]
[1743983325771,0.28432314,106.07,106.03,0.0001]
[1743983326068,69.5144284,106.06,106.03,0.0001]
[1743983326366,0.28432314,106.05,106.03,0.0001]
[1743983326772,88.16407726,106.06,106.03,0.0001]
[1743983326939,69.79875154,106.04,106.03,0.0001]
[1743983327137,88.59056197,106.04,106.03,0.0001]
[1743983327539,98.02096197,106.04,106.03,0.0001]
[1743983327735,0.28432314,106.04,106.03,0.0001]
[1743983327955,69.79875154,106.04,106.03,0.0001]
[1743983328168,79.22915154,106.04,106.03,0.0001]
[1743983328353,69.79875154,106.04,106.03,0.0001]
[1743983328545,0.28432314,106.04,106.03,0.0001]
[1743983329071,98.02096197,106.04,106.03,0.0001]
[1743983329369,79.22915154,106.04,106.03,0.0001]
[1743983330550,0.28432314,106.04,106.03,0.0001]
[1743983331168,69.5144284,106.05,106.03,0.0001]
[1743983331337,69.5144284,106.07,106.03,69.5145284]
[1743983331537,12.44,106.08,106.04,69.5144284]
[1743983332063,2.6987,106.11,106.05,69.5144284]
[1743983332245,69.65658997,106.11,106.06,69.5144284]
[1743983332573,69.5144284,106.08,106.04,10.9464]
[1743983332939,69.5144284,106.08,106.04,80.4608284]
[1743983333135,21.9264,106.12,106.05,69.5144284]
[1743983333343,88.30623883,106.11,106.06,69.5144284]
[1743983333550,0.28432314,106.1,106.06,69.5144284]
[1743983333752,91.4408284,106.12,106.07,69.5144284]
[1743983334257,69.5144284,106.11,106.07,69.5144284]
[1743983334442,69.5144284,106.11,106.06,69.5144284]
[1743983334640,22.21072314,106.12,106.04,10.9464]
[1743983334641,0.28432314,106.08,106.04,10.9464]
[1743983334839,69.79875154,106.07,106.03,69.5145284]
[1743983335047,69.5144284,106.07,106.03,69.5145284]
[1743983335251,0.28432314,106.08,106.03,46.27755724]
[1743983335465,46.56178038,106.08,106.04,46.27745724]
[1743983335678,55.98858038,106.08,106.03,0.0001]
[1743983335875,46.27745724,106.07,106.03,0.0001]
[1743983336042,46.27745724,106.07,106.03,46.27755724]
[1743983336243,55.98858038,106.08,106.03,46.27755724]
[1743983336983,55.98858038,106.08,106.03,0.0001]
[1743983337142,0.28432314,106.08,106.04,46.27745724]
[1743983337350,9.4254,106.1,106.05,46.27745724]
[1743983337567,55.70285724,106.1,106.05,46.27745724]
[1743983337783,9.85098471,106.11,106.07,46.27745724]
[1743983337982,56.12844195,106.11,106.06,46.27745724]
[1743983339056,46.27745724,106.09,106.03,0.0001]
[1743983339363,46.27745724,106.09,106.04,46.27745724]
[1743983339566,9.85098471,106.11,106.03,0.0001]
[1743983339567,46.27745724,106.05,106.03,0.0001]
[1743983339964,0.28432314,106.06,106.03,0.0001]
[1743983340155,46.56178038,106.04,106.03,0.0001]
[1743983340788,65.35359081,106.04,106.03,0.0001]
[1743983340974,74.78399081,106.04,106.03,0.0001]
[1743983341380,99.74726455,106.04,106.03,0.0001]
[1743983343085,119.74726455,106.04,106.03,0.0001]
[1743983343951,99.46294141,106.04,106.03,0.0001]
[1743983344278,99.60510298,106.04,106.03,0.0001]
[1743983344488,99.74726455,106.04,106.03,0.0001]
[1743983345367,19.07613357,106.03,105.98,0.063]
[1743983345562,88.59804007,105.99,105.98,0.063]
[1743983345957,0.28432314,105.99,105.98,0.063]
[1743983346273,69.80622964,105.99,105.98,0.063]
[1743983346782,18.79181043,106.01,105.98,0.063]
[1743983346783,0.28432314,106.0,105.98,0.063]
[1743983346948,0.28432314,106.01,105.98,0.063]
[1743983347149,69.80622964,106.01,105.98,0.063]
[1743983347347,69.66406807,106.01,105.98,0.063]
[1743983347877,69.5219065,106.0,105.98,0.063]
[1743983348282,69.66406807,106.01,105.98,0.063]
[1743983348501,71.24073098,106.02,105.98,0.063]
[1743983348776,69.5219065,106.04,105.99,69.5219065]
[1743983348971,21.849,106.06,106.0,69.5219065]
[1743983349277,79.09086807,106.08,106.03,69.5219065]
[1743983349477,69.80622964,106.07,106.02,69.5219065]
[1743983349854,69.80622964,106.07,106.03,69.5219065]
[1743983350054,69.80622964,106.07,106.02,69.5219065]
[1743983350249,78.9487065,106.08,106.03,69.5219065]
[1743983350479,69.5219065,106.09,106.04,69.5219065]
[1743983350657,69.5219065,106.11,106.06,69.5219065]
[1743983351170,9.77102314,106.12,106.07,69.5219065]
[1743983351171,69.5849065,106.12,106.07,69.5219065]
[1743983351678,0.063,106.12,106.1,69.5219065]
[1743983351886,0.063,106.12,106.11,69.5219065]
[1743983352873,0.063,106.13,106.12,10.3606]
[1743983353088,0.063,106.13,106.12,79.8825065]
[1743983355689,0.063,106.15,106.14,26.0]
[1743983355881,0.063,106.15,106.14,69.5219065]
[1743983357488,0.063,106.15,106.14,95.5219065]
[1743983357869,0.063,106.15,106.14,184.11994657]
[1743983358571,0.063,106.19,106.15,19.07613357]
[1743983358789,0.063,106.19,106.18,193.98522343]
[1743983359086,0.063,106.22,106.19,19.07613357]
[1743983359287,0.063,106.22,106.21,69.5219065]
[1743983360687,0.063,106.22,106.21,100.97804007]
[1743983361093,0.063,106.25,106.21,100.97804007]
[1743983361260,0.063,106.25,106.24,88.59804007]
[1743983361465,0.063,106.25,106.24,158.61994657]
[1743983361661,0.063,106.25,106.24,167.88974657]
[1743983362778,0.063,106.25,106.24,148.813613]
[1743983362970,0.063,106.25,106.24,79.2917065]
[1743983363379,0.063,106.25,106.21,12.38]
[1743983363869,0.063,106.25,106.22,69.5219065]
[1743983364371,0.063,106.25,106.23,69.5219065]
[1743983364577,0.063,106.25,106.21,12.38]
[1743983364779,0.063,106.25,106.23,69.5219065]
[1743983365297,0.063,106.25,106.24,69.5219065]
[1743983365670,0.063,106.25,106.21,12.38]
[1743983365882,0.063,106.25,106.22,69.5219065]
[1743983366205,0.063,106.25,106.24,69.5219065]
[1743983366993,0.063,106.25,106.24,139.043813]
[1743983367197,0.063,106.25,106.24,69.5219065]
[1743983367894,0.063,106.25,106.24,139.043813]
[1743983368108,0.063,106.25,106.24,158.61994657]
[1743983369195,0.063,106.25,106.24,158.11994657]
[1743983369490,0.063,106.25,106.24,69.5219065]
[1743983369873,0.063,106.25,106.24,139.043813]
[1743983370094,0.063,106.25,106.22,12.36]
[1743983370271,0.063,106.25,106.23,69.5219065]
[1743983370691,0.063,106.25,106.22,69.5219065]
[1743983371198,0.063,106.25,106.23,69.5219065]
[1743983371378,0.063,106.25,106.24,69.5219065]
[1743983372407,0.063,106.25,106.2,79.5814065]
[1743983372576,0.063,106.25,106.22,69.5219065]
[1743983372772,0.063,106.25,106.23,69.5219065]
[1743983373899,0.063,106.25,106.24,69.5219065]
[1743983374590,0.063,106.25,106.2,79.5814065]
[1743983375195,0.063,106.25,106.24,69.5219065]
[1743983377075,0.063,106.25,106.2,80.0814065]
[1743983377279,0.063,106.25,106.24,69.5219065]
[1743983378810,0.063,106.25,106.23,69.5219065]
[1743983378991,0.063,106.25,106.22,69.5219065]
[1743983379409,0.063,106.25,106.2,56.17401039]
[1743983379714,46.17751039,106.25,106.19,294.18]
[1743983379914,55.58981039,106.25,106.19,294.18]
[1743983380215,55.58981039,106.25,106.2,46.11451039]
[1743983380382,46.11451039,106.24,106.19,46.11451039]
[1743983380584,46.11451039,106.24,106.2,46.11451039]
[1743983381276,55.58981039,106.25,106.2,46.11451039]
[1743983381782,46.11451039,106.23,106.19,46.11451039]
[1743983382006,46.11451039,106.2,106.13,306.14]
[1743983382309,46.11451039,106.19,106.15,46.11451039]
[1743983382506,46.11451039,106.2,106.15,46.11451039]
[1743983382709,19.07613357,106.21,106.17,46.11451039]
[1743983382910,46.11451039,106.2,106.15,46.11451039]
[1743983383120,46.11451039,106.2,106.16,46.11451039]
[1743983383310,46.11451039,106.2,106.15,46.11451039]
[1743983383607,22.3356,106.22,106.17,46.11451039]
[1743983383809,12.921,106.22,106.18,46.11451039]
[1743983384105,32.2277,106.25,106.2,46.11451039]
[1743983384308,46.11451039,106.24,106.2,46.11451039]
[1743983384614,68.93021039,106.25,106.2,46.11451039]
[1743983384903,0.063,106.25,106.24,46.11451039]
[1743983385087,0.063,106.25,106.23,46.11451039]
[1743983386006,0.063,106.25,106.22,46.11451039]
[1743983386206,0.063,106.25,106.21,46.11451039]
[1743983386389,0.063,106.25,106.22,46.11451039]
[1743983386591,46.17751039,106.25,106.21,46.11451039]
[1743983386796,46.11451039,106.24,106.2,46.11451039]
[1743983387105,46.11451039,106.24,106.18,12.34]
[1743983387106,46.11451039,106.23,106.18,46.11451039]
[1743983387305,69.22170613,106.23,106.19,69.22170613]
[1743983387498,69.22170613,106.24,106.19,69.22170613]
[1743983387880,69.22170613,106.22,106.17,69.22170613]
[1743983388082,69.64819084,106.21,106.13,10.0648]
[1743983388326,69.22170613,106.17,106.13,69.22170613]
[1743983388507,69.22170613,106.17,106.1,91.62650613]
[1743983388709,69.22170613,106.17,106.12,69.22170613]
[1743983389316,69.22170613,106.16,106.11,69.22170613]
[1743983389720,2.3863,106.18,106.14,69.22170613]
[1743983389917,2.3863,106.18,106.15,69.22170613]
[1743983390532,12.5027,106.22,106.17,69.22170613]
[1743983390828,12.5027,106.22,106.18,69.22170613]
[1743983391006,12.5027,106.22,106.19,69.22170613]
[1743983391405,12.5027,106.22,106.18,69.22170613]
[1743983392223,12.5027,106.22,106.19,69.22170613]
[1743983392628,69.22170613,106.21,106.16,12.34]
[1743983392834,12.5027,106.22,106.18,69.22170613]
[1743983393021,2.5885,106.22,106.2,69.22170613]
[1743983393527,2.5885,106.22,106.19,69.22170613]
[1743983394540,2.5885,106.22,106.16,12.34]
[1743983394724,2.5885,106.22,106.19,69.22170613]
[1743983395513,2.5885,106.22,106.16,12.34]
[1743983395710,2.5885,106.22,106.19,69.22170613]
[1743983396908,71.81020613,106.22,106.17,69.22170613]
[1743983397115,69.22170613,106.21,106.17,69.22170613]
[1743983397417,2.5885,106.22,106.18,69.22170613]
[1743983397624,71.81020613,106.22,106.17,69.22170613]
[1743983397827,88.2978397,106.21,106.16,69.22170613]
[1743983398030,69.22170613,106.2,106.15,69.22170613]
[1743983398235,88.2978397,106.21,106.16,69.22170613]
[1743983398935,71.81020613,106.22,106.17,69.22170613]
[1743983399243,2.5885,106.22,106.18,69.22170613]
[1743983399432,81.22480613,106.22,106.18,69.22170613]
[1743983399743,69.22170613,106.21,106.16,69.22170613]
[1743983400242,19.07613357,106.21,106.16,69.22170613]
[1743983400542,88.2978397,106.21,106.17,69.22170613]
[1743983400737,0.42648471,106.21,106.17,69.22170613]
[1743983400941,69.64819084,106.21,106.16,69.22170613]
[1743983401144,69.22170613,106.19,106.15,69.22170613]
[1743983401624,88.2978397,106.18,106.12,0.03]
[1743983401816,69.22170613,106.16,106.12,0.03]
[1743983402017,69.22170613,106.15,106.12,0.03]
[1743983402239,69.22170613,106.14,106.12,0.03]
[1743983403156,19.07613357,106.13,106.12,0.03]
[1743983403643,88.2978397,106.13,106.12,0.03]
[1743983403825,97.7202397,106.13,106.12,0.03]
[1743983404223,88.2978397,106.13,106.12,0.03]
[1743983404441,71.74390613,106.15,106.12,0.03]
[1743983404633,2.5222,106.15,106.12,0.03]
[1743983404945,71.74390613,106.15,106.12,0.03]
[1743983405450,69.22170613,106.14,106.12,0.03]
[1743983405641,71.74390613,106.15,106.12,0.03]
[1743983406733,69.22170613,106.14,106.12,0.03]
[1743983407430,71.74390613,106.15,106.12,0.03]
[1743983407826,69.22170613,106.14,106.12,0.03]
[1743983408039,69.22170613,106.13,106.12,0.03]
[1743983408226,88.2978397,106.13,106.12,0.03]
[1743983408626,88.2978397,106.13,106.09,0.03]
[1743983408627,19.07613357,106.12,106.09,0.03]
[1743983408934,69.64819084,106.12,106.09,0.03]
[1743983409950,19.07613357,106.12,106.09,0.03]
[1743983410129,19.07613357,106.13,106.09,69.25170613]
[1743983410332,69.22170613,106.12,106.09,0.03]
[1743983410542,88.2978397,106.13,106.09,0.03]
[1743983410747,88.2978397,106.13,106.09,69.25170613]
[1743983410946,2.5222,106.15,106.1,69.22170613]
[1743983410947,7.30592776,106.15,106.1,69.22170613]
[1743983411154,7.30592776,106.15,106.11,69.22170613]
[1743983411330,2.5222,106.15,106.12,69.22170613]
[1743983411649,19.07613357,106.14,106.1,69.22170613]
[1743983411863,2.5222,106.15,106.1,69.22170613]
[1743983412067,71.74390613,106.15,106.1,69.22170613]
[1743983412421,2.5222,106.15,106.1,69.22170613]
[1743983412727,2.5222,106.15,106.12,69.22170613]
[1743983412926,69.22170613,106.17,106.09,9.8598]
[1743983413130,19.28656157,106.18,106.09,9.8598]
[1743983413131,88.15567813,106.15,106.09,0.03]
[1743983413331,19.07613357,106.13,106.09,69.25170613]
[1743983413531,88.2978397,106.13,106.09,0.03]
[1743983414629,19.07613357,106.13,106.09,0.03]
[1743983414826,88.2978397,106.13,106.09,0.03]
[1743983415027,88.2978397,106.11,106.09,0.03]
[1743983415245,88.2978397,106.1,106.09,0.03]
[1743983415736,9.7209,106.11,106.09,0.03]
[1743983415942,97.70520613,106.12,106.09,0.03]
[1743983416135,28.4835,106.12,106.09,0.03]
[1743983416452,71.70520613,106.12,106.09,0.03]
[1743983416662,2.4835,106.12,106.09,69.25170613]
[1743983417366,2.4835,106.12,106.09,0.03]
[1743983417748,71.70520613,106.12,106.09,0.03]
[1743983418452,69.3638677,106.1,106.09,0.03]
[1743983418661,88.15567813,106.08,106.07,0.03]
[1743983418842,21.67433357,106.07,106.06,0.03]
[1743983419157,161.83657031,106.07,106.03,0.03]
[1743983419344,65.40188776,106.04,106.03,0.03]
[1743983419833,74.83228776,106.04,106.03,0.03]
[1743983420242,19.07613357,106.03,106.0,0.03]
[1743983420580,65.40188776,106.01,106.0,0.03]
[1743983420939,46.32575419,106.01,106.0,0.03]
[1743983421140,46.32575419,106.03,106.0,0.03]
[1743983421364,69.47821495,106.04,106.0,0.03]
[1743983421676,78.90871495,106.04,106.0,0.03]
[1743983421975,69.47821495,106.01,106.0,0.03]
[1743983422164,88.55434852,106.01,106.0,0.03]
[1743983423379,21.57783357,106.0,105.98,0.063]
[1743983423687,100.85434852,105.99,105.98,0.063]
[1743983423980,112.007973,105.99,105.98,0.063]
[1743983424472,19.07613357,105.98,105.96,0.03]
[1743983424679,69.47821495,105.97,105.96,0.03]
[1743983425371,88.55434852,105.97,105.96,0.03]
[1743983425875,19.07613357,105.96,105.92,0.03]
[1743983426059,19.07613357,105.94,105.92,0.03]
[1743983426250,69.47821495,105.93,105.92,0.03]
[1743983426445,88.55434852,105.93,105.92,0.03]
[1743983426855,91.10094852,105.93,105.92,0.03]
[1743983427256,19.07613357,105.92,105.9,0.03]
[1743983427463,88.55434852,105.91,105.9,0.03]
[1743983427654,158.03256347,105.91,105.9,0.03]
[1743983427867,162.7799602,105.91,105.9,0.03]
[1743983428074,69.62037652,105.89,105.88,0.03]
[1743983428269,100.85434852,105.89,105.88,0.03]
[1743983428776,9.4417,105.92,105.88,0.03]
[1743983428777,18.933972,105.92,105.88,0.03]
[1743983429283,0.14216157,105.91,105.88,69.50821495]
[1743983429474,2.4469,105.97,105.9,69.47821495]
[1743983429674,0.14216157,105.94,105.9,69.47821495]
[1743983429862,0.28432314,105.93,105.9,69.47821495]
[1743983430284,18.79181043,105.94,105.9,69.47821495]
[1743983430461,69.62037652,105.94,105.88,0.03]
[1743983430664,69.62037652,105.94,105.89,69.47821495]
[1743983430985,1.71882448,105.97,105.93,69.47821495]
[1743983431197,316.7097,106.01,105.94,69.47821495]
[1743983431198,69.47821495,105.98,105.94,69.47821495]
[1743983431491,326.1431,106.01,105.92,95.47821495]
[1743983431492,69.47821495,105.96,105.92,95.47821495]
[1743983431656,18.64964886,105.97,105.93,69.47821495]
[1743983431857,18.64964886,105.97,105.94,69.47821495]
[1743983432155,69.62037652,105.98,105.93,69.47821495]
[1743983432356,18.79181043,106.0,105.95,69.47821495]
[1743983432588,69.62037652,106.0,105.96,69.47821495]
[1743983432959,0.14216157,106.0,105.94,26.0]
[1743983433279,0.42648471,105.98,105.93,69.47821495]
[1743983433491,18.64964886,105.97,105.93,69.47821495]
[1743983433982,0.42648471,105.98,105.94,69.47821495]
[1743983434187,18.64964886,105.97,105.93,69.47821495]
[1743983434395,0.28432314,105.98,105.94,69.47821495]
[1743983434572,0.28432314,105.98,105.93,26.0]
[1743983434770,69.76253809,105.98,105.93,95.47821495]
[1743983435673,88.27002538,105.97,105.93,95.47821495]
[1743983435888,69.76253809,105.96,105.9,12.3]
[1743983436089,69.76253809,105.96,105.91,69.47821495]
[1743983436274,69.76253809,105.96,105.9,12.3]
[1743983436275,69.76253809,105.96,105.92,69.47821495]
[1743983436478,0.28432314,105.96,105.9,12.3]
[1743983436682,0.28432314,105.96,105.92,69.47821495]
[1743983436877,18.79181043,105.97,105.93,69.47821495]
[1743983437082,18.79181043,105.97,105.94,69.47821495]
[1743983437287,18.79181043,105.97,105.9,12.3]
[1743983437593,0.28432314,105.96,105.92,69.47821495]
[1743983437794,69.76253809,105.96,105.92,69.47821495]
[1743983437985,0.28432314,105.96,105.93,69.47821495]
[1743983438206,19.07613357,105.96,105.9,12.3]
[1743983438399,88.55434852,105.96,105.92,69.47821495]
[1743983438594,0.42648471,105.96,105.92,69.47821495]
[1743983438899,19.07613357,105.96,105.92,69.47821495]
[1743983439076,69.90469966,105.96,105.92,69.47821495]
[1743983439277,18.64964886,105.93,105.88,0.03]
[1743983439488,69.47821495,105.93,105.89,69.47821495]
[1743983439668,19.07613357,105.92,105.88,69.50821495]
[1743983440489,69.90469966,105.92,105.88,69.50821495]
[1743983440992,0.42648471,105.92,105.88,0.03]
[1743983441193,69.90469966,105.92,105.88,0.03]
[1743983441396,88.12786381,105.91,105.88,0.03]
[1743983441607,69.47821495,105.92,105.88,69.50821495]
[1743983441814,69.47821495,105.93,105.88,69.50821495]
[1743983441979,2.6325,105.95,105.91,69.47821495]
[1743983442313,18.933972,105.94,105.91,69.47821495]
[1743983442502,18.933972,105.94,105.89,12.28]
[1743983442681,88.41218695,105.94,105.89,12.28]
[1743983442881,72.11071495,105.95,105.91,69.47821495]
[1743983443107,18.933972,105.95,105.92,69.47821495]
[1743983443415,18.933972,105.95,105.91,69.47821495]
[1743983444278,0.28432314,105.93,105.89,69.47821495]
[1743983444516,18.933972,105.93,105.89,69.47821495]
[1743983445585,19.07613357,105.94,105.91,69.47821495]
[1743983445793,19.07613357,105.94,105.9,69.47821495]
[1743983446308,88.55434852,105.94,105.89,69.47821495]
[1743983446475,97.99374852,105.94,105.89,69.47821495]
[1743983446679,19.07613357,105.92,105.88,107.78821495]
[1743983446986,19.07613357,105.93,105.9,69.47821495]
[1743983447614,69.47821495,105.94,105.9,69.47821495]
[1743983447785,19.07613357,105.94,105.91,69.47821495]
[1743983447981,18.79181043,105.95,105.91,69.47821495]
[1743983448387,88.27002538,105.95,105.91,69.47821495]
[1743983448913,0.28432314,105.94,105.9,69.47821495]
[1743983449111,88.27002538,105.93,105.88,38.31]
[1743983449296,18.79181043,105.93,105.89,69.47821495]
[1743983449612,18.79181043,105.93,105.9,69.47821495]